fUST/lending_fUST_20250228
["ID","MTS","AMOUNT","RATE_DAILY","PERIOD"]
[354810378,1740711057765,-1624.99,0.00104554,120]
[354810379,1740711057775,-560.65,0.00104554,120]
[354810380,1740711057786,-1395.02,0.00104554,120]
[354810381,1740711057796,-5503.07,0.00104554,120]
[354810382,1740711057805,-586.18,0.00104653,120]
[354810383,1740711057815,-500.0,0.00104653,120]
[354810384,1740711057824,-689.73,0.00104653,120]
[354810385,1740711057833,-721.81,0.00104653,120]
[354810386,1740711057843,-3541.66,0.00104653,120]
[354810387,1740711057853,-1916.66,0.00104653,120]
[354810388,1740711057864,-3093.38,0.00104653,120]
[354810389,1740711057874,-745.08,0.00104653,120]
[354810390,1740711057884,-1141.61,0.00104653,120]
[354810391,1740711057894,-585.52,0.00104653,120]
[354810392,1740711057903,-2121.8,0.00104653,120]
[354810393,1740711057914,-359.51018069,0.00104653,120]
[354810394,1740711057926,-799.49,0.00104653,120]
[354810395,1740711057936,-1492.81,0.00104653,120]
[354810396,1740711057946,-762.94,0.00104653,120]
[354810397,1740711057956,-500.0,0.00104653,120]
[354810398,1740711057967,-500.0,0.00104653,120]
[354810399,1740711057977,-725.19,0.00104653,120]
[354810400,1740711057988,-500.0,0.00104653,120]
[354810401,1740711057998,-6264.52,0.00104653,120]
[354810402,1740711058008,-588.30411987,0.00104653,120]
[354810403,1740711058018,-15140.25,0.00104653,7]
[354810404,1740711058028,-1016.52,0.00104653,120]
[354810405,1740711058038,-500.0,0.00104653,120]
[354810406,1740711058047,-151.0,0.00104653,120]
[354810407,1740711058057,-535.88,0.00104654,120]
[354810408,1740711058067,-500.0,0.00104654,120]
[354810409,1740711058078,-500.0,0.00104654,120]
[354810410,1740711058087,-619.7,0.00104654,120]
[354810411,1740711058097,-500.0,0.00104654,120]
[354810412,1740711058106,-3780.72,0.00104654,120]
[354810413,1740711058116,-3816.17,0.00104654,120]
[354810414,1740711058126,-28125.23,0.00104654,7]
[354810415,1740711058136,-347.378101,0.00104654,120]
[354810416,1740711058146,-347.378101,0.00104654,120]
[354810417,1740711058156,-2308.32,0.00104654,120]
[354810418,1740711058167,-151.0,0.00104654,120]
[354810419,1740711058180,-151.0,0.00104654,120]
[354810420,1740711058190,-161.991384,0.00104654,120]
[354810421,1740711058200,-684.28,0.00104654,120]
[354810422,1740711058210,-690.848298,0.00104654,120]
[354810423,1740711058219,-690.848298,0.00104654,120]
[354810424,1740711058229,-500.0,0.00104655,120]
[354810425,1740711058239,-500.0,0.00104655,120]
[354810426,1740711058249,-3354.16,0.00104655,120]
[354810427,1740711058259,-469.51774236,0.00106849,120]
[354810428,1740711058270,-1220.83,0.00106849,120]
[354810429,1740711058280,-3264.74,0.00106849,120]
[354810430,1740711058291,-1178.86,0.00106849,120]
[354810431,1740711058302,-1624.99,0.00107294,120]
[354810432,1740711058312,-560.65,0.00107294,120]
[354810433,1740711058322,-1395.02,0.00107294,120]
[354810434,1740711058332,-586.18,0.00107393,120]
[354810435,1740711058342,-403.07152267,0.00107393,120]
[354810436,1740711058353,-689.73,0.00107393,120]
[354810437,1740711058363,-721.81,0.00107393,120]
[354810438,1740711058373,-3541.66,0.00107393,120]
[354810439,1740711058384,-1916.66,0.00107393,120]
[354810440,1740711058394,-3093.38,0.00107393,120]
[354810441,1740711058404,-745.08,0.00107393,120]
[354810442,1740711058414,-1141.61,0.00107393,120]
[354810443,1740711058425,-585.52,0.00107393,120]
[354810444,1740711058434,-2121.8,0.00107393,120]
[354810445,1740711058444,-799.49,0.00107393,120]
[354810446,1740711058528,-1492.81,0.00107393,120]
[354810447,1740711058540,-762.94,0.00107393,120]
[354810448,1740711058551,-500.0,0.00107393,120]
[354810449,1740711058563,-500.0,0.00107393,120]
[354810450,1740711058574,-725.19,0.00107393,120]
[354810451,1740711058585,-500.0,0.00107393,120]
[354810452,1740711058596,-6264.52,0.00107393,120]
[354810453,1740711058607,-15140.25,0.00107393,7]
[354810454,1740711058616,-1016.52,0.00107393,120]
[354810455,1740711058626,-500.0,0.00107393,120]
[354810456,1740711058636,-535.88,0.00107394,120]
[354810457,1740711058646,-500.0,0.00107394,120]
[354810458,1740711058655,-500.0,0.00107394,120]
[354810459,1740711058665,-619.7,0.00107394,120]
[354810460,1740711058677,-500.0,0.00107394,120]
[354810461,1740711058689,-3780.72,0.00107394,120]
[354810462,1740711058702,-3816.17,0.00107394,120]
[354810463,1740711058711,-28125.23,0.00107394,7]
[354810464,1740711058720,-2308.32,0.00107394,120]
[354810465,1740711058730,-684.28,0.00107394,120]
[354810466,1740711058741,-256.69,0.00107395,120]
[354810467,1740711058751,-151.0,0.00107395,120]
[354810468,1740711058760,-151.0,0.00107395,120]
[354810469,1740711058770,-587.01471621,0.00107395,120]
[354810470,1740711058779,-3354.16,0.00107395,120]
[354810471,1740711058789,-500.0,0.00108,120]
[354810472,1740711058798,-500.0,0.00108,120]
[354810473,1740711058807,-500.0,0.00108,120]
[354810474,1740711058816,-231.19,0.00108,120]
[354810475,1740711058825,-185532.64839344,0.00109,30]
[354810476,1740711058835,-38489.24518124,0.00109,30]
[354810477,1740711058844,-151.0,0.00109,120]
[354810478,1740711058853,-223.906706,0.00109,120]
[354810479,1740711058863,-933.044701,0.00109,120]
[354810480,1740711058873,-933.044701,0.00109,120]
[354810481,1740711058882,-371.500554,0.00109,120]
[354810482,1740711058892,-371.500554,0.00109,120]
[354810483,1740711058901,-672.305236,0.00109,120]
[354810484,1740711058911,-672.305236,0.00109,120]
[354810485,1740711058920,-151.0,0.00109,2]
[354810486,1740711058931,-234.268196,0.00109,2]
[354810487,1740711058940,-448.133255,0.00109,120]
[354810488,1740711058949,-448.133255,0.00109,120]
[354810489,1740711058960,-151.0,0.00109,120]
[354810490,1740711058969,-1076.841152,0.00109,120]
[354810491,1740711058979,-1076.841152,0.00109,120]
[354810492,1740711058988,-184.451296,0.00109,120]
[354810493,1740711058997,-184.451296,0.00109,120]
[354810494,1740711059007,-700.44124047,0.00109342,120]
[354810495,1740711059016,-500.0,0.001095,120]
[354810496,1740711059025,-500.0,0.001095,120]
[354810497,1740711059034,-500.0,0.001095,120]
[354810498,1740711059044,-500.0,0.001095,120]
[354810499,1740711059054,-1220.83,0.00109589,120]
[354810500,1740711059064,-3264.74,0.00109589,120]
[354810501,1740711059073,-1178.86,0.00109589,120]
[354810502,1740711059083,-500.0,0.00109589,120]
[354810503,1740711059094,-218.43,0.0011,120]
[354810504,1740711059104,-7029.0,0.0011,120]
[354810505,1740711059112,-5503.07,0.00110033,120]
[354810506,1740711059122,-1624.99,0.00110034,120]
[354810507,1740711059131,-560.65,0.00110034,120]
[354810508,1740711059141,-1395.02,0.00110034,120]
[354810509,1740711059152,-1916.66,0.00110132,120]
[354810510,1740711059161,-3093.38,0.00110132,120]
[354810511,1740711059173,-745.08,0.00110132,120]
[354810512,1740711059183,-1141.61,0.00110132,120]
[354810513,1740711059193,-585.52,0.00110132,120]
[354810514,1740711059202,-2121.8,0.00110132,120]
[354810515,1740711059212,-799.49,0.00110132,120]
[354810516,1740711059222,-1492.81,0.00110132,120]
[354810517,1740711059232,-762.94,0.00110132,120]
[354810518,1740711059242,-397.43012703,0.00110132,120]
[354810519,1740711059253,-500.0,0.00110132,120]
[354810520,1740711059263,-500.0,0.00110132,120]
[354810521,1740711059273,-6264.52,0.00110132,120]
[354810522,1740711059282,-15140.25,0.00110132,7]
[354810523,1740711059292,-1016.52,0.00110132,120]
[354810524,1740711059302,-172.92065655,0.00110132,120]
[354810525,1740711059312,-535.88,0.00110133,120]
[354810526,1740711059322,-586.18,0.00110133,120]
[354810527,1740711059332,-233.69533,0.00110133,120]
[354810528,1740711059342,-500.0,0.00110133,120]
[354810529,1740711059352,-500.0,0.00110133,120]
[354810530,1740711059362,-689.73,0.00110133,120]
[354810531,1740711059371,-467.167709,0.00110133,120]
[354810532,1740711059380,-467.167709,0.00110133,120]
[354810533,1740711059389,-619.7,0.00110133,120]
[354810534,1740711059399,-721.81,0.00110133,120]
[354810535,1740711059409,-3541.66,0.00110133,120]
[354810536,1740711059418,-500.0,0.00110133,120]
[354810537,1740711059429,-3780.72,0.00110133,120]
[354810538,1740711059439,-3816.17,0.00110133,120]
[354810539,1740711059448,-28125.23,0.00110133,7]
[354810540,1740711059457,-347.378101,0.00110133,120]
[354810541,1740711059467,-347.378101,0.00110133,120]
[354810542,1740711059477,-2308.32,0.00110133,120]
[354810543,1740711059487,-151.0,0.00110133,120]
[354810544,1740711059498,-205.986338,0.00110133,120]
[354810545,1740711059509,-684.28,0.00110133,120]
[354810546,1740711059520,-690.848298,0.00110133,120]
[354810547,1740711059531,-690.848298,0.00110133,120]
[354810548,1740711059541,-725.19,0.00110133,120]
[354810549,1740711059549,-151.0,0.00110134,120]
[354810550,1740711059559,-151.0,0.00110134,120]
[354810551,1740711059568,-225.260544,0.00110134,120]
[354810552,1740711059577,-151.0,0.00110134,120]
[354810553,1740711059587,-151.0,0.00110134,120]
[354810554,1740711059596,-151.0,0.00110134,120]
[354810555,1740711059608,-3354.16,0.00110135,120]
[354810556,1740711059618,-500.0,0.00111031,120]
[354810557,1740711059627,-1792.35,0.00112,60]
[354810558,1740711059636,-1220.83,0.00112328,120]
[354810559,1740711059646,-3264.74,0.00112328,120]
[354810560,1740711059655,-1178.86,0.00112328,120]
[354810561,1740711059666,-500.0,0.00112473,120]
[354810562,1740711059677,-1624.99,0.00112773,120]
[354810563,1740711059688,-560.65,0.00112773,120]
[354810564,1740711059699,-1395.02,0.00112773,120]
[354810565,1740711059710,-586.18,0.00112872,120]
[354810566,1740711059720,-689.73,0.00112872,120]
[354810567,1740711059729,-721.81,0.00112872,120]
[354810568,1740711059740,-3541.66,0.00112872,120]
[354810569,1740711059750,-1916.66,0.00112872,120]
[354810570,1740711059759,-3093.38,0.00112872,120]
[354810571,1740711059770,-745.08,0.00112872,120]
[354810572,1740711059781,-1141.61,0.00112872,120]
[354810573,1740711059792,-585.52,0.00112872,120]
[354810574,1740711059801,-2121.8,0.00112872,120]
[354810575,1740711059810,-799.49,0.00112872,120]
[354810576,1740711059820,-1492.81,0.00112872,120]
[354810577,1740711059829,-762.94,0.00112872,120]
[354810578,1740711059839,-500.0,0.00112872,120]
[354810579,1740711059850,-725.19,0.00112872,120]
[354810580,1740711059859,-500.0,0.00112872,120]
[354810581,1740711059870,-6264.52,0.00112872,120]
[354810582,1740711059880,-15140.25,0.00112872,7]
[354810583,1740711059891,-1016.52,0.00112872,120]
[354810584,1740711059900,-535.88,0.00112873,120]
[354810585,1740711059911,-500.0,0.00112873,120]
[354810586,1740711059924,-500.0,0.00112873,120]
[354810587,1740711059934,-619.7,0.00112873,120]
[354810588,1740711059943,-500.0,0.00112873,120]
[354810589,1740711059953,-3780.72,0.00112873,120]
[354810590,1740711059963,-3816.17,0.00112873,120]
[354810591,1740711059978,-28125.23,0.00112873,7]
[354810592,1740711059988,-2308.32,0.00112873,120]
[354810593,1740711059998,-684.28,0.00112873,120]
[354810594,1740711060008,-3354.16,0.00112875,120]
[354810595,1740711060018,-500.0,0.00113915,120]
[354810596,1740711060028,-1220.83,0.00115068,120]
[354810597,1740711060114,-3264.74,0.00115068,120]
[354810598,1740711060125,-1178.86,0.00115068,120]
[354810599,1740711060137,-500.0,0.00115357,120]
[354810600,1740711060148,-1624.99,0.00115513,120]
[354810601,1740711060160,-560.65,0.00115513,120]
[354810602,1740711060175,-1395.02,0.00115513,120]
[354810603,1740711060186,-5503.07,0.00115513,120]
[354810604,1740711060196,-586.18,0.00115612,120]
[354810605,1740711060207,-689.73,0.00115612,120]
[354810606,1740711060218,-721.81,0.00115612,120]
[354810607,1740711060228,-3541.66,0.00115612,120]
[354810608,1740711060239,-1916.66,0.00115612,120]
[354810609,1740711060248,-3093.38,0.00115612,120]
[354810610,1740711060259,-745.08,0.00115612,120]
[354810611,1740711060269,-1141.61,0.00115612,120]
[354810612,1740711060279,-585.52,0.00115612,120]
[354810613,1740711060289,-2121.8,0.00115612,120]
[354810614,1740711060299,-799.49,0.00115612,120]
[354810615,1740711060309,-1492.81,0.00115612,120]
[354810616,1740711060318,-762.94,0.00115612,120]
[354810617,1740711060329,-500.0,0.00115612,120]
[354810618,1740711060339,-725.19,0.00115612,120]
[354810619,1740711060349,-497.0949558,0.00115612,120]
[354810620,1740711060358,-6264.52,0.00115612,120]
[354810621,1740711060367,-15140.25,0.00115612,7]
[354810622,1740711060378,-1016.52,0.00115612,120]
[354810623,1740711060388,-535.88,0.00115613,120]
[354810624,1740711060397,-197.42237316,0.00115613,120]
[354810625,1740711060409,-331.99979526,0.00115613,120]
[354810626,1740711060418,-619.7,0.00115613,120]
[354810627,1740711060432,-411.16814934,0.00115613,120]
[354810628,1740711060441,-3780.72,0.00115613,120]
[354810629,1740711060451,-3816.17,0.00115613,120]
[354810630,1740711060461,-28125.23,0.00115613,7]
[354810631,1740711060471,-2308.32,0.00115613,120]
[354810632,1740711060481,-684.28,0.00115613,120]
[354810633,1740711060490,-3354.16,0.00115614,120]
[354810634,1740711060500,-509.28489223,0.0011669,120]
[354810635,1740711060510,-500.0,0.00116799,120]
[354810636,1740711060520,-1220.99205127,0.00117808,120]
[354810637,1740711060530,-3264.86123604,0.00117808,120]
[354810638,1740711060539,-1178.97940897,0.00117808,120]
[354810639,1740711060549,-3661.29,0.00118,60]
[354810640,1740711060559,-1431.26,0.00118,60]
[354810641,1740711060569,-500.0,0.00118241,120]
[354810642,1740711060578,-1625.12037785,0.00118253,120]
[354810643,1740711060588,-560.83591871,0.00118253,120]
[354810644,1740711060598,-1395.10432214,0.00118253,120]
[354810645,1740711060608,-586.21312065,0.00118352,120]
[354810646,1740711060618,-689.8278222,0.00118352,120]
[354810647,1740711060628,-721.94716708,0.00118352,120]
[354810648,1740711060638,-3541.82000001,0.00118352,120]
[354810649,1740711060646,-1916.82,0.00118352,120]
[354810650,1740711060656,-3093.5916582,0.00118352,120]
[354810651,1740711060666,-745.08062503,0.00118352,120]
[354810652,1740711060679,-1141.64965003,0.00118352,120]
[354810653,1740711060692,-585.60930601,0.00118352,120]
[354810654,1740711060702,-2121.97392696,0.00118352,120]
[354810655,1740711060711,-799.71,0.00118352,120]
[354810656,1740711060721,-1493.00997738,0.00118352,120]
[354810657,1740711060731,-763.02890042,0.00118352,120]
[354810658,1740711060740,-151.0,0.00118352,120]
[354810659,1740711060751,-326.71056846,0.00118352,120]
[354810660,1740711060760,-725.2664889,0.00118352,120]
[354810661,1740711060770,-1076.841152,0.00118352,120]
[354810662,1740711060781,-1076.84115,0.00118352,120]
[354810663,1740711060792,-6264.64788587,0.00118352,120]
[354810664,1740711060801,-184.451296,0.00118352,120]
[354810665,1740711060810,-184.451303,0.00118352,120]
[354810666,1740711060820,-15140.47865544,0.00118352,7]
[354810667,1740711060829,-1016.62009033,0.00118352,120]
[354810668,1740711060839,-535.97100452,0.00118353,120]
[354810669,1740711060849,-619.81020238,0.00118353,120]
[354810670,1740711060858,-672.305236,0.00118353,120]
[354810671,1740711060868,-672.305236,0.00118353,120]
[354810672,1740711060877,-3780.8225113,0.00118353,120]
[354810673,1740711060886,-3816.34389781,0.00118353,120]
[354810674,1740711060896,-151.0,0.00118353,2]
[354810675,1740711060905,-448.133255,0.00118353,120]
[354810676,1740711060914,-28125.44393741,0.00118353,7]
[354810677,1740711060925,-448.133255,0.00118353,120]
[354810678,1740711060935,-2308.53239736,0.00118353,120]
[354810679,1740711060944,-684.39806788,0.00118353,120]
[354810680,1740711060953,-151.0,0.00118354,120]
[354810681,1740711060963,-239.865577,0.00118354,120]
[354810682,1740711060973,-3354.32,0.00118354,120]
[354810683,1740711060982,-3000.0,0.00119335,14]
[354810684,1740711060992,-3000.0,0.00119335,14]
[354810685,1740711061001,-500.0,0.00119683,120]
[354810686,1740711061011,-10000.0,0.0012,120]
[354810687,1740711061020,-5503.07,0.00120992,120]
[354810688,1740711061030,-500.0,0.00121125,120]
[354810689,1740711061040,-257.27656296,0.00121945,120]
[354810690,1740711061050,-257.27656296,0.00122521,120]
[354810691,1740711061060,-500.0,0.00122567,120]
[354810692,1740711061069,-257.27656296,0.00123123,120]
[354810693,1740711061079,-257.27656296,0.00123699,120]
[354810694,1740711061089,-500.0,0.00124009,120]
[354810695,1740711061098,-257.27656296,0.00124301,120]
[354810696,1740711061108,-257.27656296,0.00124877,120]
[354810697,1740711061117,-500.0,0.00125,120]
[354810698,1740711061127,-500.0,0.00125,120]
[354810699,1740711061136,-500.0,0.00125,120]
[354810700,1740711061145,-500.0,0.00125,120]
[354810701,1740711061154,-500.0,0.00125,120]
[354810702,1740711061164,-500.0,0.00125,120]
[354810703,1740711061176,-10000.0,0.00125,120]
[354810704,1740711061186,-500.0,0.00125451,120]
[354810705,1740711061196,-257.27656296,0.00125479,120]
[354810706,1740711061206,-257.27656296,0.00126055,120]
[354810707,1740711061215,-5503.07,0.00126472,120]
[354810708,1740711061225,-257.27656296,0.00126658,120]
[354810709,1740711061234,-500.0,0.00126893,120]
[354810710,1740711061244,-324.32,0.00127,60]
[354810711,1740711061253,-257.27656296,0.00127233,120]
[354810712,1740711061263,-257.27656296,0.00127836,120]
[354810713,1740711061272,-500.0,0.00128335,120]
[354810714,1740711061281,-257.27656296,0.00128411,120]
[354810715,1740711061291,-500.0,0.00129777,120]
[354810716,1740711061301,-500.0,0.00131219,120]
[354810717,1740711061310,-5503.07,0.00131951,120]
[354810718,1740711061319,-160.0,0.00132231,120]
[354810719,1740711061328,-500.0,0.00132661,120]
[354810720,1740711061341,-500.0,0.00134103,120]
[354810721,1740711061350,-1792.35,0.00135,60]
[354810722,1740711061359,-500.0,0.00135545,120]
[354810723,1740711061369,-182.744011,0.00136986,120]
[354810724,1740711061378,-500.0,0.00136987,120]
[354810725,1740711061388,-5503.07,0.00137431,120]
[354810726,1740711061397,-3500.0,0.00138604,14]
[354810727,1740711061408,-3500.0,0.00138604,14]
[354810728,1740711061417,-179.42583375,0.00140101,60]
[354810729,1740711061429,-5503.07,0.0014291,120]
[354810730,1740711061438,-626.99,0.00145,120]
[354810731,1740711061448,-5503.07,0.0014839,120]
[354810732,1740711061457,-1000.0,0.0015,120]
[354810733,1740711061467,-10000.0,0.0015,120]
[354810734,1740711061540,-347.378101,0.0015,120]
[354810735,1740711061551,-347.378101,0.0015,120]
[354810736,1740711061561,-151.0,0.0015,120]
[354810737,1740711061570,-690.848298,0.0015,120]
[354810738,1740711061580,-690.848298,0.0015,120]
[354810739,1740711061590,-3661.29,0.0015,60]
[354810740,1740711061600,-1431.26,0.0015,60]
[354810741,1740711061610,-160.0,0.00150232,120]
[354810742,1740711061620,-5032.57298758,0.00151526,120]
[354810743,1740711061629,-1528.98,0.001521,30]
[354810744,1740711061640,-544.0,0.00152909,120]
[354810745,1740711061649,-544.0,0.00152909,120]
[354810746,1740711061659,-544.0,0.00152909,120]
[354810747,1740711061668,-544.0,0.00152909,120]
[354810748,1740711061680,-544.0,0.00152909,120]
[354810749,1740711061691,-544.0,0.00152909,120]
[354810750,1740711061701,-544.0,0.00152909,120]
[354810751,1740711061712,-544.0,0.00152909,120]
[354810752,1740711061722,-544.0,0.00152909,120]
[354810753,1740711061733,-544.0,0.00152909,120]
[354810754,1740711061743,-544.0,0.00152909,120]
[354810755,1740711061753,-544.0,0.00152909,120]
[354810756,1740711061763,-544.0,0.00152909,120]
[354810757,1740711061773,-544.0,0.00152909,120]
[354810758,1740711061785,-544.0,0.00153086,120]
[354810759,1740711061796,-544.0,0.00153086,120]
[354810760,1740711061805,-544.0,0.00153086,120]
[354810761,1740711061815,-544.0,0.00153086,120]
[354810762,1740711061825,-544.0,0.00153086,120]
[354810763,1740711061834,-544.0,0.00153086,120]
[354810764,1740711061844,-544.0,0.00153086,120]
[354810765,1740711061853,-544.0,0.00153086,120]
[354810766,1740711061863,-544.0,0.00153086,120]
[354810767,1740711061874,-544.0,0.00153086,120]
[354810768,1740711061883,-544.0,0.00153086,120]
[354810769,1740711061893,-544.0,0.00153086,120]
[354810770,1740711061902,-544.0,0.00153086,120]
[354810771,1740711061912,-544.0,0.00153086,120]
[354810772,1740711061921,-544.0,0.001533,120]
[354810773,1740711061939,-544.0,0.001533,120]
[354810774,1740711061949,-544.0,0.001533,120]
[354810775,1740711061959,-544.0,0.001533,120]
[354810776,1740711061968,-544.0,0.001533,120]
[354810777,1740711061978,-544.0,0.001533,120]
[354810778,1740711061987,-544.0,0.001533,120]
[354810779,1740711061997,-544.0,0.001533,120]
[354810780,1740711062007,-544.0,0.001533,120]
[354810781,1740711062018,-544.0,0.001533,120]
[354810782,1740711062028,-544.0,0.001533,120]
[354810783,1740711062037,-544.0,0.001533,120]
[354810784,1740711062047,-544.0,0.001533,120]
[354810785,1740711062057,-544.0,0.001533,120]
[354810786,1740711062067,-544.0,0.00153491,120]
[354810787,1740711062077,-544.0,0.00153491,120]
[354810788,1740711062086,-544.0,0.00153491,120]
[354810789,1740711062095,-544.0,0.00153491,120]
[354810790,1740711062105,-544.0,0.00153491,120]
[354810791,1740711062115,-544.0,0.00153491,120]
[354810792,1740711062126,-544.0,0.00153491,120]
[354810793,1740711062135,-544.0,0.00153491,120]
[354810794,1740711062145,-544.0,0.00153491,120]
[354810795,1740711062154,-544.0,0.00153491,120]
[354810796,1740711062164,-544.0,0.00153491,120]
[354810797,1740711062175,-544.0,0.00153491,120]
[354810798,1740711062186,-544.0,0.00153491,120]
[354810799,1740711062202,-544.0,0.00153491,120]
[354810800,1740711062220,-5503.07,0.00153869,120]
[354810801,1740711062233,-5503.07,0.00159349,120]
[354810802,1740711062250,-933.044701,0.00159553,120]
[354810803,1740711062266,-933.044701,0.00159553,120]
[354810804,1740711062282,-371.500554,0.00159553,120]
[354810805,1740711062300,-371.500554,0.00159553,120]
[354810806,1740711062315,-4000.0,0.00159553,14]
[354810807,1740711062330,-4000.0,0.00159553,14]
[354810808,1740711062346,-1000.0,0.0016,120]
[354810809,1740711062359,-64468.83,0.0016,60]
[354810810,1740711062373,-231.793255,0.0016,120]
[354810811,1740711062388,-151.0,0.0016,120]
[354810812,1740711062404,-151.0,0.0016,120]
[354810813,1740711062426,-151.0,0.0016,120]
[354810814,1740711062444,-210.9821,0.0016,120]
[354810815,1740711062457,-151.0,0.0016,120]
[354810816,1740711062470,-467.167709,0.0016,120]
[354810817,1740711062487,-467.167709,0.0016,120]
[354810818,1740711062501,-5503.07,0.00164828,120]
[354810819,1740711062515,-500.0,0.00166,120]
[354810820,1740711062528,-500.0,0.00166,120]
[354810821,1740711062542,-500.0,0.00166,120]
[354810822,1740711062554,-500.0,0.00166,120]
[354810823,1740711062566,-500.0,0.00166,120]
[354810824,1740711062579,-5503.07,0.00170307,120]
[354810825,1740711062593,-5503.07,0.00175787,120]
[354810826,1740711062606,-1000.0,0.0018,120]
[354810827,1740711062620,-160.0,0.00180787,3]
[354810828,1740711062633,-5503.29683337,0.00181266,120]
[354810829,1740711062646,-4500.0,0.00182058,14]
[354810830,1740711062659,-4500.0,0.00182058,14]
[354810831,1740711062672,-5000.0,0.001829,120]
[354810832,1740711062687,-324.32,0.0019,60]
[354810833,1740711062702,-160.0,0.00191284,120]
[354810834,1740711062721,-1146.73,0.001935,120]
[354810835,1740711062736,-23705.9949462,0.00193878,60]
[354810836,1740711062750,-460.39,0.001947,87]
[354810837,1740711062787,-460.39,0.001947,87]
[354810838,1740711062801,-460.39,0.001947,87]
[354810839,1740711062813,-460.39,0.001947,87]
[354810840,1740711062827,-460.39,0.001947,87]
[354810841,1740711062842,-460.39,0.001947,87]
[354810842,1740711062855,-460.39,0.001947,87]
[354810843,1740711062869,-460.39,0.001947,87]
[354810844,1740711062883,-460.39,0.001947,87]
[354810845,1740711062897,-460.39,0.001947,87]
[354810846,1740711062911,-460.39,0.001947,87]
[354810847,1740711062927,-460.39,0.001947,87]
[354810848,1740711062937,-460.39,0.001947,87]
[354810849,1740711062947,-460.39,0.001947,87]
[354810850,1740711062956,-460.39,0.001947,87]
[354810851,1740711062966,-460.39,0.001947,87]
[354810852,1740711062976,-460.39,0.001947,87]
[354810853,1740711062986,-460.39,0.001947,87]
[354810854,1740711062996,-460.39,0.001947,87]
[354810855,1740711063006,-460.39,0.001947,87]
[354810856,1740711063015,-460.39,0.001947,87]
[354810857,1740711063025,-460.39,0.001947,87]
[354810858,1740711063036,-460.39,0.001947,87]
[354810859,1740711063047,-460.39,0.001947,87]
[354810860,1740711063056,-1792.35,0.00195,60]
[354810861,1740711063067,-1000.0,0.002,120]
[354810862,1740711063217,-1350.0,0.002,120]
[354810863,1740711063236,-1350.0,0.002,120]
[354810864,1740711063248,-1000.0,0.002,120]
[354810865,1740711063258,-500.0,0.002,120]
[354810866,1740711063269,-1263.09468943,0.00206018,14]
[354810867,1740711063280,-5000.0,0.00206018,14]
[354810868,1740711063290,-160.0,0.0020835,3]
[354810869,1740711063302,-299.75040611,0.0020835,5]
[354810870,1740711063313,-160.0,0.0020835,4]
[354810871,1740711063324,-160.0,0.0020835,5]
[354810872,1740711063334,-1000.0,0.0022,120]
[354810873,1740711063344,-1350.0,0.0023,120]
[354810874,1740711063354,-1350.0,0.0023,120]
[354810875,1740711063363,-1350.0,0.0023,120]
[354810876,1740711063373,-1350.0,0.0023,120]
[354810877,1740711063383,-168.13211,0.00230897,120]